[Event "FIDE Women World Rapid 2024"]
[Site "New York"]
[Date "2024.12.27"]
[Round "8.28"]
[White "Berezovska, Svetlana"]
[Black "Noshin, Anjum"]
[Result "0-1"]
[ECO "C50"]
[WhiteElo "1857"]
[BlackElo "2029"]
[Annotator "ChessBase"]
[PlyCount "94"]
[EventDate "2024.12.14"]
[EventType "swiss"]
[EventCountry "USA"]
[SourceTitle "playchess.com"]
[Source "ChessBase"]
[SourceQuality "1"]
[TimeControl "900+10"]

1. e4 {[%emt 0:00:02]} e5 {[%emt 0:00:03]} 2. Nf3 {[%emt 0:00:02]} Nc6 {[%emt 0:00:02]} 3. Bc4 {[%emt 0:00:02]} Nf6 {[%emt 0:00:15]} 4. d3 {[%emt 0:00:05]} Bc5 {[%emt 0:00:04]} 5. O-O {[%emt 0:00:03]} d6 {[%emt 0:00:09]} 6. Bg5 {[%emt 0:00:13]} h6 {[%emt 0:00:16]} 7. Bh4 {[%emt 0:00:02]} g5 {[%emt 0:00:14]} 8. Bg3 {[%emt 0:00:01]} Bg4 {[%emt 0:01:22]} 9. c3 {[%emt 0:00:51]} Bb6 {[%emt 0:02:10]} 10. Nbd2 {[%emt 0:00:21]} Qe7 {[%emt 0:01:05]} 11. b4 {[%emt 0:01:13]} Nh5 {[%emt 0:00:39]} 12. a4 {[%emt 0:01:38]} a5 {[%emt 0:00:07]} 13. Qb3 {[%emt 0:01:41]} axb4 {[%emt 0:01:55]} 14. cxb4 {[%emt 0:00:23]} Nxg3 {[%emt 0:00:09]} 15. hxg3 {[%emt 0:00:20]} Nd4 {[%emt 0:00:53]} 16. Nxd4 {[%emt 0:00:41]} Bxd4 {[%emt 0:00:02]} 17. Rac1 {[%emt 0:01:05]} O-O {[%emt 0:01:21]} 18. Qc2 {[%emt 0:03:25]} c6 {[%emt 0:01:10]} 19. Nf3 {[%emt 0:00:34]} Bxf3 {[%emt 0:03:41]} 20. gxf3 {[%emt 0:00:02]} d5 {[%emt 0:00:52]} 21. exd5 {[%emt 0:01:18]} cxd5 {[%emt 0:00:00]} 22. Bxd5 {[%emt 0:00:18]} Qd7 {[%emt 0:00:02]} 23. Bc4 {[%emt 0:02:52]} Qh3 {[%emt 0:00:14]} 24. Qe2 {[%emt 0:00:16]} Qxg3+ {[%emt 0:00:02]} 25. Kh1 {[%emt 0:00:00]} Qh3+ {[%emt 0:00:06]} 26. Kg1 {[%emt 0:00:03]} Rxa4 {[%emt 0:00:10]} 27. b5 {[%emt 0:00:28]} Rb4 {[%emt 0:00:39]} 28. Rc2 {[%emt 0:00:21]} b6 {[%emt 0:00:50]} 29. Qe4 {[%emt 0:00:11]} Qg3+ {[%emt 0:00:16]} 30. Kh1 {[%emt 0:00:01]} Qh3+ {[%emt 0:00:04]} 31. Kg1 {[%emt 0:00:01]} Kg7 {[%emt 0:00:16]} 32. Qg4 {[%emt 0:00:24]} Qxg4+ {[%emt 0:00:05]} 33. fxg4 {[%emt 0:00:02]} f5 {[%emt 0:00:19]} 34. gxf5 {[%emt 0:00:10]} Rxf5 {[%emt 0:00:02]} 35. Be6 {[%emt 0:00:51]} Rf4 {[%emt 0:00:38]} 36. Rc7+ {[%emt 0:00:16]} Kg6 {[%emt 0:00:33]} 37. Bc4 {[%emt 0:00:27]} Rb2 {[%emt 0:00:04]} 38. Rc6+ {[%emt 0:00:05]} Kg7 {[%emt 0:00:17]} 39. Rc7+ {[%emt 0:00:06]} Kg6 {[%emt 0:00:12]} 40. Rc6+ {[%emt 0:00:02]} Kh5 {[%emt 0:00:06]} 41. Bd5 {[%emt 0:00:48]} Rfxf2 {[%emt 0:00:11]} 42. Rxf2 {[%emt 0:00:08]} Rxf2 {[%emt 0:00:03]} 43. Kh1 {[%emt 0:00:02]} Rf4 {[%emt 0:00:20]} 44. Be4 {[%emt 0:00:06]} Rf2 {[%emt 0:00:13]} 45. Bg6+ {[%emt 0:00:06]} Kh4 {[%emt 0:00:03]} 46. Be4 {[%emt 0:00:06]} Kg3 {[%emt 0:00:13]} 47. Rc1 {[%emt 0:00:31]} Rh2# {[%emt 0:00:02]} 0-1